Cogmind - Beta 10.2 @@@ ROGUE MODE // 2020.12.07 @ 14:54:42 Player: 3.14 Result: Self-destructed Performance ------------- Evolutions (5) 2500 Regions Visited (14) 2800 Robots Destroyed (93) 465 Value Destroyed (2439) 2439 Prototype IDs (22) 440 Alien Tech Used (1) 200 Bonus (529) 529 TOTAL SCORE: 9373 Bonus ------- High Alert Combat Kills 82 Follower Combat Kills 170 Met Data Miner 300 Friendly Fire -23 Cogmind --------- Core Integrity 893/1000 Matter 300/300 Energy 240/240 System Corruption 0% Temperature Cool (25) Movement Hovering (64) Location -5/Extension Parts ------- > --- POWER (2) -------- Light Antimatter Reactor Light Antimatter Reactor > --- PROPULSION (5) --- Combat Airjet Combat Airjet Combat Airjet Combat Airjet Combat Airjet > --- UTILITY (8) ------ High-capacity Storage Unit Experimental Signal Interpreter Advanced Reaction Control System Layered Light Armor Plating Improved Hacking Suite Advanced System Shield > --- WEAPON (3) ------- Scythe Ripper > --- INVENTORY (12) --- Light Angular Momentum Engine Combat Airjet Combat Gravmag System Combat Gravmag System Advanced Cooling System High-capacity Battery (400) Advanced Sensor Array Layered Light Armor Plating Layered Light Armor Plating System Restoration Module Rocket Launcher Remote Datajack Peak State ------------ > --- POWER ------------ Light Antimatter Reactor Light Antimatter Reactor > --- PROPULSION ------- Combat Airjet Combat Airjet Combat Airjet Combat Airjet Combat Airjet > --- UTILITY ---------- High-capacity Storage Unit Experimental Signal Interpreter Advanced Reaction Control System Phase Shifter Layered Light Armor Plating Improved Hacking Suite Deep Network Scanner Advanced System Shield > --- WEAPON ----------- Scythe Ripper Power Sword > --- INVENTORY -------- Light Angular Momentum Engine Combat Airjet Combat Gravmag System Combat Gravmag System Advanced Cooling System High-capacity Battery Advanced Sensor Array Layered Light Armor Plating Layered Light Armor Plating System Restoration Module Rocket Launcher Remote Datajack [Rating: 102] Favorites ----------- Power Light Antimatter Reactor Engine Improved Ion Engine Power Core Light Nuclear Core Reactor Light Antimatter Reactor Propulsion Improved VTOL Module Treads Light Treads Leg Aluminum Leg Hover Unit Combat Airjet Flight Unit Improved VTOL Module Utility Large Storage Unit Device Advanced Sensor Array Storage Large Storage Unit Processor Advanced Signal Interpreter Hackware Improved Hacking Suite Protection Light Armor Plating Weapon Scythe Energy Gun Spread Laser Ballistic Gun Light Assault Rifle Launcher Rocket Launcher Special Weapon Remote Datajack Slashing Weapon Scythe Special Melee Weapon Improved Datajack Build | -11 -10 -9 -9 -8 -7 -7 -7 -7 -6 -6 -5 -5 -5 -5 ------- Run | Scr Mat Mat Min Mat Fac Low Low Dat Pro Fac Fac Was Fac Ext Slots Evolved 10 | . . 2 . 2 2 . . . . 2 2 . . . Power 1 | . . . . . . . . . . 1 . . . . Propulsion 3 | . . . . 1 1 . . . . . 1 . . . Utility 6 | . . 2 . 1 1 . . . . 1 1 . . . Weapon . | . . . . . . . . . . . . . . . Parts Attached 142 | 7 9 23 2 28 18 1 3 4 6 14 2 . 14 11 Power 14 | 1 1 1 . 2 2 . . 1 . 3 . . 3 . Engine 4 | 1 1 1 . 1 . . . . . . . . . . Core 8 | . . . . 1 2 . . 1 . 3 . . 1 . Reactor 2 | . . . . . . . . . . . . . 2 . Propulsion 25 | 2 . 4 . 6 4 . . . . 2 1 . 5 1 Treads 9 | 2 . 2 . 5 . . . . . . . . . . Leg 2 | . . 2 . . . . . . . . . . . . Wheel . | . . . . . . . . . . . . . . . Hover 6 | . . . . . . . . . . . . . 5 1 Flight 8 | . . . . 1 4 . . . . 2 1 . . . Utility 50 | 2 3 6 . 6 9 1 2 2 1 6 1 . 6 5 Device 15 | 1 1 1 . 1 2 . . . 1 2 . . 2 4 Storage 9 | 1 2 3 . 1 1 . . . . . . . 1 . Processor 6 | . . . . 1 1 . 1 1 . . . . 2 . Hackware 7 | . . . . . 4 . . . . 3 . . . . Protection 13 | . . 2 . 3 1 1 1 1 . 1 1 . 1 1 Artifact . | . . . . . . . . . . . . . . . Weapon 53 | 2 5 12 2 14 3 . 1 1 5 3 . . . 5 Energy Gun 22 | 1 . 11 2 7 . . . . . . . . . 1 Energy Cannon . | . . . . . . . . . . . . . . . Ballistic Gun 8 | 1 5 1 . 1 . . . . . . . . . . Ballistic Cannon . | . . . . . . . . . . . . . . . Launcher 5 | . . . . 2 . . . . 2 . . . . 1 Special Weapon 1 | . . . . . . . . . . 1 . . . . Impact Weapon . | . . . . . . . . . . . . . . . Slashing Weapon 11 | . . . . 4 1 . 1 . 1 1 . . . 3 Piercing Weapon . | . . . . . . . . . . . . . . . Special Melee Weapon 6 | . . . . . 2 . . 1 2 1 . . . . Unidentified Prototypes 6 | . . . . 2 1 . 1 . . 1 . . 1 . Parts Lost 9 | . . 1 . 3 . . 1 . . 1 . . . 3 Power . | . . . . . . . . . . . . . . . Propulsion . | . . . . . . . . . . . . . . . Utility 4 | . . . . 1 . . 1 . . . . . . 2 Weapon 5 | . . 1 . 2 . . . . . 1 . . . 1 Highest Loss Streak 3 | . . 1 . 1 . . 1 . . 1 . . . 3 Average Slot Usage (%) 98 | . 100 98 100 99 97 100 88 86 91 97 100 100 99 99 Engine 3 | . 14 11 11 5 . . . . . . . . . . Core 3 | . . . . 3 6 7 7 7 7 11 11 11 4 . Reactor 2 | . . . . . . . . . . . . . 6 11 Treads 10 | . 28 20 22 27 . . . . . . . . . . Hover 6 | . . . . . . . . . . . . . 20 27 Flight 9 | . . . . . 28 30 28 28 28 25 27 27 6 . Device 7 | . 1 9 11 2 6 7 7 1 7 11 11 11 11 10 Storage 14 | . 27 23 33 27 8 7 7 7 7 6 5 5 5 5 Processor 5 | . . . . 6 10 7 8 19 14 6 5 5 5 5 Hackware 8 | . . . . . 9 15 7 7 7 15 16 16 16 15 Protection 5 | . . 9 . 8 7 7 5 5 6 1 5 5 3 5 Energy Gun 4 | . 2 19 22 7 . . . . . . . . . . Ballistic Gun 2 | . 26 2 . . . . . . . . . . . . Special Weapon 1 | . . . . . . . . . . 3 5 5 5 4 Slashing Weapon 7 | . . . . 10 7 7 7 7 7 11 11 11 11 11 Special Melee Weapon 1 | . . . . . 6 7 7 2 5 1 . . . . Naked Turns . | . . . . . . . . . . . . . . . Heaviest Build 78 | 10 41 61 62 78 78 23 24 23 27 32 34 34 72 72 Greatest Support 110 | 40 40 40 40 60 60 24 24 24 24 33 37 37 110 110 Greatest Overweight (x) 2 | . 1 2 1 1 1 . . . 1 . . . 1 . Average Overweight (x) . | . . 1 1 . . . . . . . . . . . Largest Inventory Capacity 24 | 6 16 22 22 24 24 8 8 8 8 8 8 8 12 12 Average Capacity 13 | 5 15 16 22 22 9 8 8 8 8 8 8 8 8 12 Most Carried 24 | 4 16 20 20 24 24 8 8 8 8 8 8 8 8 12 Average Carried 12 | 1 14 16 20 20 8 7 7 7 7 7 7 8 7 10 Final Capacity 24 | 6 16 22 22 24 8 8 8 8 8 8 8 8 12 12 Final Carried 24 | 4 16 20 20 24 8 8 8 8 8 8 8 8 8 12 Class Distribution -------------------- 24% | Hacker-Mutant 23% | Mutant 21% | Hacker-Sprinter 19% | Hauler-Mutant 10% | Sprinter Dominant Class ---------------- Mutant | -10/Materials Mutant | -9/Materials Hauler-Mutant | -9/Mines Hauler-Mutant | -8/Materials Hacker-Sprinter | -7/Factory Hacker-Sprinter | -7/Lower Caves Sprinter | -7/Lower Caves Sprinter | -7/Data Miner Sprinter | -6/Proximity Caves Hacker-Sprinter | -6/Factory Hacker-Sprinter | -5/Factory Hacker-Sprinter | -5/Waste Hacker-Mutant | -5/Factory Hacker-Mutant | -5/Extension Resources | -11 -10 -9 -9 -8 -7 -7 -7 -7 -6 -6 -5 -5 -5 -5 ----------- Run | Scr Mat Mat Min Mat Fac Low Low Dat Pro Fac Fac Was Fac Ext Matter Collected 2105 | 272 240 251 . 362 160 20 45 . 94 88 126 . 155 292 Remotely 109 | 109 . . . . . . . . . . . . . . Salvage Created 3537 | 98 421 500 . 1093 67 21 . 20 82 140 126 . 160 809 Parts 188 | 2 27 41 . 47 6 2 . 3 14 9 4 . 8 25 Haulers Intercepted 9 | . 1 2 . 2 . . . . . . 1 . . 3 Recyclers Shooed 6 | . 1 . . 5 . . . . . . . . . . Parts Field Recycled . | . . . . . . . . . . . . . . . Retrieved Matter . | . . . . . . . . . . . . . . . Parts Self-Destructed 18 | . . . . . . 2 4 . 12 . . . . . Prevented 2 | . . . . . . . 2 . . . . . . . Kills | -11 -10 -9 -9 -8 -7 -7 -7 -7 -6 -6 -5 -5 -5 -5 ------- Run | Scr Mat Mat Min Mat Fac Low Low Dat Pro Fac Fac Was Fac Ext Combat Hostiles Destroyed 64 | . 9 12 . 22 1 1 . . 8 3 . . . 8 Melee 20 | . . . . 11 1 1 . . . 3 . . . 4 Guns 25 | . 9 12 . 4 . . . . . . . . . . AOE 19 | . . . . 7 . . . . 8 . . . . 4 Classes Destroyed 12 | 1 4 2 . 1 1 . . . . . . . 1 2 Worker 2 | . . . . . . . . . . . . . 2 . Builder 1 | . . . . . . . . . . . . . . 1 Hauler 9 | . 1 2 . 2 . . . . . . 1 . . 3 Recycler 9 | 1 1 . . 5 . . . . . . . . 1 1 Operator 4 | . . 1 . 1 1 . . . . . 1 . . . Watcher 3 | . 1 . . . . . . . . 2 . . . . Swarmer 29 | . 3 6 . 4 . 1 . . 8 3 . . . 4 Grunt 27 | . 6 3 . 15 . . . . . . . . . 3 Duelist 1 | . . . . 1 . . . . . . . . . . Sentry 5 | . . 3 . 2 . . . . . . . . . . Programmer 1 | . . . . . 1 . . . . . . . . . Behemoth 1 | . . . . . . . . . . . . . . 1 Best Kill Streak 10 | 1 8 4 . 10 1 1 . 1 4 4 1 . 1 4 Combat Bots Only 8 | . 6 3 . 8 1 1 . . 4 3 . . . 4 Max Kills in Single Turn 3 | 1 2 2 . 2 1 1 . 1 3 1 1 . 1 3 Gunslinging 1 | . 1 1 . . . . . . . . . . . . Exploded 3 | . . . . 2 . . . . 3 . . . . 3 Melee 2 | . . . . 2 1 1 . . . 1 . . . 1 Uniques/NPCs Destroyed 1 | . . . . . . . . 1 . . . . . . Data Miner (-7/Data Miner) Combat | -11 -10 -9 -9 -8 -7 -7 -7 -7 -6 -6 -5 -5 -5 -5 -------- Run | Scr Mat Mat Min Mat Fac Low Low Dat Pro Fac Fac Was Fac Ext Damage Taken 3355 | . 138 463 . 1121 102 143 56 80 57 363 164 . 117 551 Core 434 | . 21 75 . 76 15 49 7 . . 84 18 . . 89 Absorbed by Shields 98 | . . . . . . . . . . . . . . 98 Core Remaining (%) 89 | 100 91 . 81 86 . . . . 89 90 . . . . Volleys Fired 123 | 5 21 34 . 40 . . . . 7 . . . . 16 Largest 2 | 1 2 2 . 2 . . . . 1 . . . . 1 Hottest 130 | 20 46 130 . 130 . . . . 33 . . . . 33 Shots Fired 197 | 5 42 67 . 60 . . . . 7 . . . . 16 Gun 166 | 5 42 67 . 52 . . . . . . . . . . Cannon . | . . . . . . . . . . . . . . . Launcher 19 | . . . . 8 . . . . 7 . . . . 4 Special 12 | . . . . . . . . . . . . . . 12 Kinetic 71 | 5 42 24 . . . . . . . . . . . . Thermal 91 | . . 39 . 52 . . . . . . . . . . Explosive 19 | . . . . 8 . . . . 7 . . . . 4 Electromagnetic 4 | . . 4 . . . . . . . . . . . . Robot Hit Streak 21 | 2 21 11 . 21 . . . . . . . . . 9 Robot Miss Streak 6 | 2 4 3 . 3 . . . . 3 . . . . 6 Penetration Max . | . . . . . . . . . . . . . . . Secondary Targets 4 | . 3 1 . . . . . . . . . . . . Max Gunslinging Chain 1 | . 1 1 . . . . . . . . . . . . Shots Hit Robots 241 | 3 34 44 . 88 4 1 . 1 . 13 2 . 9 42 Core Hits 182 | 2 23 30 . 83 2 1 . 1 13 5 2 . 3 17 Critical Hits 4 | . . . . 1 . 1 . . . . . . 1 1 Critical Kills 1 | . . . . . . 1 . . . . . . . . Critical Parts Destroyed 3 | . . . . 1 . . . . . . . . 1 1 Melee Attacks 185 | . . . . 40 19 6 3 1 2 39 17 . 14 44 Impact . | . . . . . . . . . . . . . . . Slashing 181 | . . . . 40 17 6 3 1 1 38 17 . 14 44 Piercing . | . . . . . . . . . . . . . . . Sneak Attacks 23 | . . . . 5 . . . 1 . 3 2 . 6 6 Combat Hostiles . | . . . . . . . . . . . . . . . Follow-up Attacks 18 | . . . . 4 1 . . . . 3 . . 2 8 Damage Inflicted 8524 | 26 621 487 11 3106 116 31 . 179 497 596 288 . 776 1790 Guns 1786 | 25 621 477 . 663 . . . . . . . . . . Cannons . | . . . . . . . . . . . . . . . Explosions 1785 | . . . . 1049 . . . . 497 . . . . 239 Melee 4918 | . . . . 1381 116 31 . 179 . 596 288 . 776 1551 Ramming 35 | 1 . 10 11 13 . . . . . . . . . . Kinetic 736 | 25 621 90 . . . . . . . . . . . . Thermal 1012 | . . 349 . 663 . . . . . . . . . . Explosive 1785 | . . . . 1049 . . . . 497 . . . . 239 Electromagnetic 38 | . . 38 . . . . . . . . . . . . Impact . | . . . . . . . . . . . . . . . Slashing 4918 | . . . . 1381 116 31 . 179 . 596 288 . 776 1551 Piercing . | . . . . . . . . . . . . . . . Highest Corruption 10 | . . . . . . . . . . . 1 10 10 6 Average Corruption 5 | . . . . . . . . . . . 1 1 7 3 Corruption Purged 11 | . . . . . . . . . . . . . 5 6 Effects 39 | . . . . . . . . . . . . . 23 16 Message Errors 5 | . . . . . . . . . . . . . 5 . Matter Fused 10 | . . . . . . . . . . . . . 5 5 Heat Flow Errors 8 | . . . . . . . . . . . . . 3 5 Energy Discharges 8 | . . . . . . . . . . . . . 6 2 Data Loss (minor) 4 | . . . . . . . . . . . . . 2 2 Data Loss (major) 1 | . . . . . . . . . . . . . 1 . Targeting Errors 3 | . . . . . . . . . . . . . 1 2 Overload Shots . | . . . . . . . . . . . . . . . Overflow Damage 701 | . . . . 273 . . . . 10 167 . . 87 164 Projectiles . | . . . . . . . . . . . . . . . Explosions 24 | . . . . 14 . . . . 10 . . . . . Melee 677 | . . . . 259 . . . . . 167 . . 87 164 Knockbacks . | . . . . . . . . . . . . . . . Impact . | . . . . . . . . . . . . . . . Kinetic . | . . . . . . . . . . . . . . . Secondary . | . . . . . . . . . . . . . . . Self-Inflicted Damage 30 | . . . . . . . . . . . . . . 30 Shots 2 | . . . . . . . . . . . . . . 2 Rammed 6 | 1 . 2 2 1 . . . . . . . . . . Targets Rammed 6 | 1 . 2 2 1 . . . . . . . . . . Kicked . | . . . . . . . . . . . . . . . Crushed . | . . . . . . . . . . . . . . . Highest Temperature 275 | . 7 132 . 228 8 2 9 10 . 63 104 70 275 217 Average Temperature 41 | . 1 26 . 81 6 2 5 7 . 23 29 35 42 43 Received Heat Transfer 788 | . 66 42 . 495 12 9 12 12 . . 18 . 27 95 Effects 2 | . . . . 1 . . . . . . . . . 1 Energy Bleed 1 | . . . . . . . . . . . . . . 1 Interference 1 | . . . . 1 . . . . . . . . . . Siege Activations . | . . . . . . . . . . . . . . . Robots Corrupted . | . . . . . . . . . . . . . . . Combat Hostiles . | . . . . . . . . . . . . . . . Parts Fried 3 | . . . . . . . . . . . . . . 3 Impact Corruptions . | . . . . . . . . . . . . . . . Robots Melted . | . . . . . . . . . . . . . . . Combat Hostiles . | . . . . . . . . . . . . . . . Parts Melted 2 | . . . . . . . . . . . . . . 2 Heat Transferred 1610 | . . 785 . 825 . . . . . . . . . . Parts Sabotaged . | . . . . . . . . . . . . . . . Parts Stolen . | . . . . . . . . . . . . . . . Parts Stripped . | . . . . . . . . . . . . . . . Power Chain Reactions . | . . . . . . . . . . . . . . . Missiles Intercepted . | . . . . . . . . . . . . . . . Alert | -11 -10 -9 -9 -8 -7 -7 -7 -7 -6 -6 -5 -5 -5 -5 ------- Run | Scr Mat Mat Min Mat Fac Low Low Dat Pro Fac Fac Was Fac Ext Peak Influence 624 | 5 234 254 99 519 384 . . . . 540 624 263 515 526 Initial 264 | . 3 16 99 38 170 . . . . 113 264 218 184 252 Average 251 | 3 72 118 99 354 278 . . . . 305 335 235 196 388 Maximum Alert Level 2 | . 1 1 . 2 1 . . . . 2 2 1 2 2 Low Security (%) 39 | 100 92 80 100 8 30 . . . . 29 12 . 45 4 Level 1 44 | . 7 19 . 62 69 . . . . 49 59 100 44 54 Level 2 16 | . . . . 28 . . . . . 20 28 . 9 41 Level 3 . | . . . . . . . . . . . . . . . Level 4 . | . . . . . . . . . . . . . . . Level 5 . | . . . . . . . . . . . . . . . High Security . | . . . . . . . . . . . . . . . Max Security . | . . . . . . . . . . . . . . . Squads Dispatched 19 | . 1 1 . 5 3 . . . . 2 2 . 4 1 Investigation 6 | . 1 . . 1 1 . . . . 1 . . 2 . Extermination 2 | . . . . . . . . . . 1 . . 1 . Reinforcement 10 | . . 1 . 3 2 . . . . . 2 . 1 1 Assault . | . . . . . . . . . . . . . . . Garrison 1 | . . . . 1 . . . . . . . . . . Intercept . | . . . . . . . . . . . . . . . Construction Impeded . | . . . . . . . . . . . . . . . Haulers Reinforced . | . . . . . . . . . . . . . . . Stealth | -11 -10 -9 -9 -8 -7 -7 -7 -7 -6 -6 -5 -5 -5 -5 --------- Run | Scr Mat Mat Min Mat Fac Low Low Dat Pro Fac Fac Was Fac Ext Distress Signals 7 | . . 2 . 4 . . . . . . . . . 1 Communications Jammed . | . . . . . . . . . . . . . . . Distress Signals . | . . . . . . . . . . . . . . . Times Spotted 177 | . 10 16 . 40 7 20 6 4 5 10 30 5 5 19 Peak Tracking Total 13 | . 3 5 . 7 3 13 5 4 4 4 12 5 2 5 Tactical Retreats 18 | . . . . 4 . 3 1 . . 2 7 . 1 . Traps | -11 -10 -9 -9 -8 -7 -7 -7 -7 -6 -6 -5 -5 -5 -5 ------- Run | Scr Mat Mat Min Mat Fac Low Low Dat Pro Fac Fac Was Fac Ext Traps Triggered 3 | . . . . . 1 . . . . . 1 . . 1 Indirectly . | . . . . . . . . . . . . . . . Trap Hack Attempts . | . . . . . . . . . . . . . . . Triggered . | . . . . . . . . . . . . . . . Disarmed . | . . . . . . . . . . . . . . . Reprogrammed . | . . . . . . . . . . . . . . . Reused . | . . . . . . . . . . . . . . . Traps Extracted . | . . . . . . . . . . . . . . . Installed . | . . . . . . . . . . . . . . . Triggered 1 | . . . . . . . 1 . . . . . . . Machines | -11 -10 -9 -9 -8 -7 -7 -7 -7 -6 -6 -5 -5 -5 -5 ---------- Run | Scr Mat Mat Min Mat Fac Low Low Dat Pro Fac Fac Was Fac Ext Machines Disabled 4 | . . . . 2 . . 1 . . . . . . 1 Max in Single Turn 1 | . . . . 1 . . 1 . . . . . . . Garrison Access 2 | . . . . . . . . . . 1 . . 1 . Machines Sabotaged . | . . . . . . . . . . . . . . . Garrisons Compromised . | . . . . . . . . . . . . . . . Overloaded Fab Kills . | . . . . . . . . . . . . . . . Fab Network Shutdowns 2 | . . . . . . . . . . 1 . . 1 . Hacking | -11 -10 -9 -9 -8 -7 -7 -7 -7 -6 -6 -5 -5 -5 -5 --------- Run | Scr Mat Mat Min Mat Fac Low Low Dat Pro Fac Fac Was Fac Ext Machines Accessed 45 | . 3 2 . 2 7 . . 3 . 8 5 . 8 7 Terminals 32 | . 3 2 . 2 4 . . . . 5 5 . 4 7 Fabricators 6 | . . . . . 2 . . . . 2 . . 2 . Repair Stations 1 | . . . . . . . . . . . . . 1 . Recycling Units . | . . . . . . . . . . . . . . . Scanalyzers 1 | . . . . . 1 . . . . . . . . . Garrison Access 2 | . . . . . . . . . . 1 . . 1 . Total Hacks 154 | . 12 3 . 5 22 . . 21 . 26 20 . 33 12 Successful 109 | . 4 1 . 1 16 . . 21 . 20 11 . 24 11 Failed 43 | . 8 2 . 3 6 . . . . 5 9 . 9 1 Catastrophic 3 | . 1 1 . . . . . . . . . . . 1 Database Lockouts 2 | . . . . 1 . . . . . 1 . . . . Manual 68 | . 9 1 . 5 7 . . . . 20 13 . 7 6 Terminals 95 | . 12 3 . 5 11 . . . . 18 20 . 14 12 Fabricators 28 | . . . . . 9 . . . . 7 . . 12 . Repair Stations 4 | . . . . . . . . . . . . . 4 . Recycling Units . | . . . . . . . . . . . . . . . Scanalyzers 2 | . . . . . 2 . . . . . . . . . Garrison Access 4 | . . . . . . . . . . 1 . . 3 . Terminal Hacks 62 | . 4 1 . 1 3 . . 21 . 7 9 . 9 7 Record 6 | . . . . . . . . 6 . . . . . . Part Schematic 21 | . 1 . . 1 1 . . 6 . 2 5 . 5 . Robot Schematic 6 | . . . . . . . . 6 . . . . . . Robot Analysis 2 | . 2 . . . . . . . . . . . . . Prototype ID Bank 5 | . . 1 . . . . . 3 . . . . . 1 Open Door 4 | . . . . . . . . . . . . . 1 3 Branch Access Points 3 | . . . . . 1 . . . . 1 . . 1 . Machine Index 1 | . . . . . . . . . . . 1 . . . Terminal Index 2 | . . . . . . . . . . 1 . . . 1 Fabricator Index 3 | . . . . . 1 . . . . 1 . . 1 . Repair Station Index 1 | . . . . . . . . . . 1 . . . . Alert Level 1 | . . . . . . . . . . . 1 . . . Unreport Threat 1 | . . . . . . . . . . . 1 . . . Locate Traps 3 | . 1 . . . . . . . . . . . 1 1 Recall Extermination 1 | . . . . . . . . . . 1 . . . . Recall Reinforcements 2 | . . . . . . . . . . . 1 . . 1 Fabricator Hacks 19 | . . . . . 6 . . . . 5 . . 8 . Load Schematic 8 | . . . . . 2 . . . . 2 . . 4 . Build 11 | . . . . . 4 . . . . 3 . . 4 . Repair Station Hacks 4 | . . . . . . . . . . . . . 4 . Scan Component 2 | . . . . . . . . . . . . . 2 . Repair 2 | . . . . . . . . . . . . . 2 . Recycling Unit Hacks . | . . . . . . . . . . . . . . . Scanalyzer 2 | . . . . . 2 . . . . . . . . . Insert Component 1 | . . . . . 1 . . . . . . . . . Analyze 1 | . . . . . 1 . . . . . . . . . Garrison Access Hacks 2 | . . . . . . . . . . 1 . . 1 . Seal Access 2 | . . . . . . . . . . 1 . . 1 . Unauthorized Hacks 20 | . . . . . 5 . . . . 7 2 . 2 4 Terminals 15 | . . . . . 3 . . . . 5 2 . 1 4 Track 5 | . . . . . 1 . . . . 2 1 . . 1 Assimilate 3 | . . . . . . . . . . 1 1 . 1 . Botnet 6 | . . . . . 2 . . . . 2 . . . 2 Operators 1 | . . . . . . . . . . . . . . 1 Fabricators 5 | . . . . . 2 . . . . 2 . . 1 . Prioritize 3 | . . . . . 1 . . . . 1 . . 1 . Siphon 2 | . . . . . 1 . . . . 1 . . . . Repair Stations . | . . . . . . . . . . . . . . . Recycling Units . | . . . . . . . . . . . . . . . Scanalyzers . | . . . . . . . . . . . . . . . Garrison Access . | . . . . . . . . . . . . . . . Data Cores Recovered . | . . . . . . . . . . . . . . . Used . | . . . . . . . . . . . . . . . Hacking Detections 31 | . 3 2 . 2 6 . . . . 6 4 . 6 2 Full Trace Events 4 | . 1 . . . . . . . . 1 . . 2 . Feedback Events 1 | . . . . . . . . . . . . . 1 . Corruption 1 | . . . . . . . . . . . . . 1 . Feedback Blocked . | . . . . . . . . . . . . . . . Robot Schematics Acquired 6 | . . . . . . . . 6 . . . . . . Robots Built . | . . . . . . . . . . . . . . . Matter . | . . . . . . . . . . . . . . . Time . | . . . . . . . . . . . . . . . Total Robot Build Rating . | . . . . . . . . . . . . . . . Part Schematics Acquired 22 | . 1 . . 1 2 . . 6 . 2 5 . 5 . Parts Built 11 | . . . . . 4 . . . . 3 . . 4 . Matter 1959 | . . . . . 572 . . . . 590 . . 797 . Time 688 | . . . . . 213 . . . . 236 . . 239 . Total Part Build Rating 60 | . . . . . 18 . . . . 14 . . 28 . Parts Repaired 2 | . . . . . . . . . . . . . 2 . Time 76 | . . . . . . . . . . . . . 76 . Parts Recycled . | . . . . . . . . . . . . . . . Recycled Matter . | . . . . . . . . . . . . . . . Retrieved Matter . | . . . . . . . . . . . . . . . Retrieved Components . | . . . . . . . . . . . . . . . Parts Scanalyzed 1 | . . . . . 1 . . . . . . . . . Part Schematics Acquired 1 | . . . . . 1 . . . . . . . . . Parts Damaged . | . . . . . . . . . . . . . . . Bothacking | -11 -10 -9 -9 -8 -7 -7 -7 -7 -6 -6 -5 -5 -5 -5 ------------ Run | Scr Mat Mat Min Mat Fac Low Low Dat Pro Fac Fac Was Fac Ext Used RIF Installer . | . . . . . . . . . . . . . . . Robots Hacked 4 | . . . . . 1 . . . . 1 . . . 2 Non-combat 4 | . . . . . 1 . . . . 1 . . . 2 Combat . | . . . . . . . . . . . . . . . Robot Hacks Applied 4 | . . . . . 1 . . . . 1 . . . 2 parse_system 1 | . . . . . 1 . . . . . . . . . no_distress 1 | . . . . . . . . . . . . . . 1 find_chute 1 | . . . . . . . . . . 1 . . . . find_recycling 1 | . . . . . . . . . . . . . . 1 Relay Couplers Released . | . . . . . . . . . . . . . . . Robots Rewired 6 | . . . . . . . . . . . . . . 6 Allies Hacked . | . . . . . . . . . . . . . . . Hacks Repelled . | . . . . . . . . . . . . . . . Allies | -11 -10 -9 -9 -8 -7 -7 -7 -7 -6 -6 -5 -5 -5 -5 -------- Run | Scr Mat Mat Min Mat Fac Low Low Dat Pro Fac Fac Was Fac Ext Total Allies 15 | . . . 2 . . . . . . 1 1 . 1 10 Largest Group 6 | . . . 2 2 . . . . . 1 2 . 1 6 Highest-Rated Group 311 | . . . 42 42 . . . . . 26 36 . 26 311 Highest-Rated Ally 156 | . . . 31 31 . . . . . 26 26 . 26 156 Total Orders . | . . . . . . . . . . . . . . . Ally Attacks 69 | . . . . 6 . . . . . . . . . 63 Total Damage 1561 | . . . . 66 . . . . . . . . . 1495 Kills 6 | . . . . . . . . . . . . . . 6 Allies Corrupted . | . . . . . . . . . . . . . . . Allies Melted . | . . . . . . . . . . . . . . . Intel | -11 -10 -9 -9 -8 -7 -7 -7 -7 -6 -6 -5 -5 -5 -5 ------- Run | Scr Mat Mat Min Mat Fac Low Low Dat Pro Fac Fac Was Fac Ext Robot Analysis Total 2 | . 2 . . . . . . . . . . . . . Derelict Logs Recovered 6 | . . . . . . 1 3 . 2 . . . . . Drone Launches . | . . . . . . . . . . . . . . . Drone Recoveries . | . . . . . . . . . . . . . . . Exploration | -11 -10 -9 -9 -8 -7 -7 -7 -7 -6 -6 -5 -5 -5 -5 ------------- Run | Scr Mat Mat Min Mat Fac Low Low Dat Pro Fac Fac Was Fac Ext Turns Passed 5979 | 115 558 773 92 981 473 99 140 62 213 515 330 16 761 851 Spaces Moved 5341 | 58 264 324 47 365 506 272 358 95 271 960 689 69 554 509 Core 2 | 2 . . . . . . . . . . . . . . Treads 1053 | 56 264 307 47 365 14 . . . . . . . . . Legs 17 | . . 17 . . . . . . . . . . . . Wheels . | . . . . . . . . . . . . . . . Hover 931 | . . . . . . . . . . . . . 422 509 Flight 3338 | . . . . . 492 272 358 95 271 960 689 69 132 . Fastest Speed 23 | 50 160 180 180 160 26 26 26 26 26 26 23 23 23 64 Average Speed 62 | 156 170 180 180 178 30 26 26 26 28 26 23 23 54 64 Slowest Speed 180 | 160 180 180 180 180 180 26 26 26 96 26 23 23 150 64 Overloaded Moves . | . . . . . . . . . . . . . . . Propulsion Burnouts . | . . . . . . . . . . . . . . . Robots Hopped 19 | . . . . . 4 . . 4 . 4 7 . . . Cave-ins Triggered . | . . . . . . . . . . . . . . . Exploration Rate (%) 39 | 5 44 33 18 34 16 43 62 76 52 29 23 84 19 49 Regions Visited 14 Branch Regions 6 Pre-discovered Areas 4 | . . . . . . . 3 1 . . . . . . Known Exits Taken 7 | . . . . . 1 1 1 1 1 1 . . 1 . Unknown Exits Taken 5 | 1 1 1 1 1 . . . . . . . . . . Scrap Searched 6 | . . . . . . . 3 . 3 . . . . . Spaces Dug 70 | . . . . 4 11 4 2 . 21 12 11 . 5 . Terrain Destroyed 187 | . . . . 38 11 4 2 . 59 12 11 . 5 45 Melee 47 | . . . . 1 11 4 2 . 1 12 11 . 5 . Projectile . | . . . . . . . . . . . . . . . AOE 140 | . . . . 37 . . . . 58 . . . . 45 Terrain Rammed . | . . . . . . . . . . . . . . . Walls Destroyed . | . . . . . . . . . . . . . . . Machines Disabled . | . . . . . . . . . . . . . . . Actions | -11 -10 -9 -9 -8 -7 -7 -7 -7 -6 -6 -5 -5 -5 -5 --------- Run | Scr Mat Mat Min Mat Fac Low Low Dat Pro Fac Fac Was Fac Ext Total 7548 | 74 336 455 52 583 804 290 399 127 396 1168 833 68 995 968 Wait 1596 | . 11 36 2 71 236 10 30 25 108 155 129 . 398 385 Move 5294 | 57 263 323 46 364 498 271 357 87 270 952 676 68 553 509 Hop 15 | . . . . . 3 . . 3 . 3 6 . . . Pick Up 99 | 4 20 19 . 24 6 1 1 4 1 4 4 . 5 6 Fast Attach 32 | 7 1 1 . 1 3 . 4 . . 4 . . 9 2 Attach 38 | . . 3 . 11 11 . . 4 . 5 2 . 2 . Detach 3 | . . . . . 2 . . . . 1 . . . . Swap 73 | . 8 19 2 16 4 1 . . 6 5 . . 3 9 Drop 109 | . 12 18 . 20 23 1 4 3 2 5 2 . 13 6 Fire 123 | 5 21 34 . 40 . . . . 7 . . . . 16 Melee 160 | . . . . 35 18 6 3 1 2 34 14 . 12 35 Ram . | . . . . . . . . . . . . . . . Kick . | . . . . . . . . . . . . . . . Crush 6 | 1 . 2 2 1 . . . . . . . . . . Escape Stasis . | . . . . . . . . . . . . . . . Rewire . | . . . . . . . . . . . . . . . Trap . | . . . . . . . . . . . . . . . Miscellaneous . | . . . . . . . . . . . . . . . Route ------- -11/Scrapyard -10/Materials -9/Materials -9/Mines -8/Materials (discovered 2 exits: *Fac x2) -7/Factory (discovered 3 exits: Sto / *Low x2) -7/Lower Caves -7/Lower Caves (discovered 2 exits: *Fac / *Dat) -7/Data Miner -6/Proximity Caves -6/Factory (discovered 4 exits: *Fac x2 / Low x2) -5/Factory (discovered 3 exits: *Fac / *Upp x2) -5/Waste -5/Factory (discovered 4 exits: Upp x2 / *Ext x2) -5/Extension History --------- Turn | Location | Event 53 | -11/Scrapyard | Discovered new exit (range 16) 116 | -11/Scrapyard | Entered Materials 306 | -10/Materials | Build established: Mutant 591 | -10/Materials | Discovered new exit (range 9) 674 | -10/Materials | Entered another Materials area 674 | -9/Materials | Evolved 2 slots: Utility x2 1423 | -9/Materials | Discovered new exit (range 13) 1447 | -9/Materials | Entered Mines 1530 | -9/Mines | Discovered new exit (range 4) 1539 | -9/Mines | Entered Materials 1539 | -8/Materials | Accompanied by 2 allies 1539 | -8/Materials | Evolved 2 slots: Propulsion x1, Utility x1 1544 | -8/Materials | Led the pair of lost Derelicts to an unsafe place 1597 | -8/Materials | Garrison activated, responded to threat 1644 | -8/Materials | Destroyed 8 combat bots 1682 | -8/Materials | Build established: Hauler-Mutant 1908 | -8/Materials | Discovered new exit (range 12) 2433 | -8/Materials | Central database locked down 2441 | -8/Materials | Discovered new exit (range 5) 2520 | -8/Materials | Entered Factory 2520 | -7/Factory | Evolved 2 slots: Propulsion x1, Utility x1 2631 | -7/Factory | Fabricated Hacking Suite (x1) 2653 | -7/Factory | Identified exit to Storage 2653 | -7/Factory | Identified exit to Lower Caves 2849 | -7/Factory | Fabricated Imp. Hacking Suite (x1) 2898 | -7/Factory | Fabricated Imp. Hacking Suite (x1) 2947 | -7/Factory | Fabricated Imp. Hacking Suite (x1) 2993 | -7/Factory | Entered Lower Caves 3019 | -7/Lower Caves | Attracted the attention of an 0b10 outpost 3028 | -7/Lower Caves | Spotted B-75 Beast 3052 | -7/Lower Caves | Learned Factory security intel 3053 | -7/Lower Caves | Encountered a Warlord checkpoint 3085 | -7/Lower Caves | Build established: Hacker-Sprinter 3090 | -7/Lower Caves | Discovered new exit (range 11) 3092 | -7/Lower Caves | Identified exit to Lower Caves 3092 | -7/Lower Caves | Entered another Lower Caves area 3102 | -7/Lower Caves | Attracted the attention of an 0b10 checkpoint 3103 | -7/Lower Caves | Discovered new exit (range 15) 3109 | -7/Lower Caves | Encountered a Warlord checkpoint 3116 | -7/Lower Caves | Learned location of Zion (-6) 3144 | -7/Lower Caves | Found Alien Artifact 3144 | -7/Lower Caves | Identified Core Expander 3144 | -7/Lower Caves | Installed Core Expander, added new Weapon slot 3229 | -7/Lower Caves | Discovered new exit (range 13) 3232 | -7/Lower Caves | Identified exit to Data Miner 3232 | -7/Lower Caves | Entered Data Miner 3232 | -7/Data Miner | Discovered new exit (range 7) 3237 | -7/Data Miner | Met Data Miner 3242 | -7/Data Miner | Learned location of Section 7 (-2) 3242 | -7/Data Miner | Acquired the access code to Warlord's prototype stash 3253 | -7/Data Miner | Received God Mode back door access code from Data Miner 3282 | -7/Data Miner | Destroyed Data Miner 3287 | -7/Data Miner | Found Prototype Hackware 3294 | -7/Data Miner | Identified exit to Proximity Caves 3294 | -7/Data Miner | Entered Proximity Caves 3307 | -6/Proximity Caves | Spotted B-75 Beast 3326 | -6/Proximity Caves | Learned location of 1 exit from Factory 3401 | -6/Proximity Caves | Build established: Sprinter 3503 | -6/Proximity Caves | Discovered new exit (range 15) 3507 | -6/Proximity Caves | Identified exit to Factory 3507 | -6/Proximity Caves | Entered Factory 3507 | -6/Factory | Evolved 2 slots: Power x1, Utility x1 3508 | -6/Factory | Identified exit to Factory 3553 | -6/Factory | Identified Deep Network Scanner 3624 | -6/Factory | Identified exit to Lower Caves 3700 | -6/Factory | Central database locked down 3776 | -6/Factory | Fabricated Adv. System Shield? 3819 | -6/Factory | Discovered exit to Factory (range 15) 3837 | -6/Factory | Build established: Hacker-Sprinter 3893 | -6/Factory | Fabricated Cld. VTOL Module? 3916 | -6/Factory | Local fabrication network quarantined 3974 | -6/Factory | Fabricated Cld. VTOL Module? 4022 | -6/Factory | Entered another Factory area 4022 | -5/Factory | Accompanied by 1 ally 4022 | -5/Factory | Evolved 2 slots: Propulsion x1, Utility x1 4023 | -5/Factory | Identified exit to Upper Caves 4174 | -5/Factory | Discovered new exit (range 5) 4175 | -5/Factory | Identified exit to Factory 4245 | -5/Factory | Found Prototype Processor 4258 | -5/Factory | Discovered exit to Upper Caves (range 14) 4352 | -5/Factory | Sucked down chute 4352 | -5/Factory | Entered Waste 4356 | -5/Waste | Spotted C-40 Crusher 4357 | -5/Waste | Spotted C-40 Crusher 4361 | -5/Waste | Spotted C-40 Crusher 4363 | -5/Waste | Spotted C-40 Crusher 4365 | -5/Waste | Discovered new exit (range 13) 4365 | -5/Waste | Spotted C-40 Crusher 4366 | -5/Waste | Spotted C-40 Crusher 4367 | -5/Waste | EMP discharged 4367 | -5/Waste | System corruption reached 10% 4368 | -5/Waste | Identified exit to Factory 4368 | -5/Waste | Entered Factory 4473 | -5/Factory | Repaired Adv. Sensor Array 4513 | -5/Factory | Repaired Lgt. Nuclear Core 4549 | -5/Factory | Identified Exp. Targeting Computer 4634 | -5/Factory | Fabricated Lgt. Antimatter Reactor? 4759 | -5/Factory | Fabricated Exp. Signal Interpreter (x1) 4818 | -5/Factory | Build established: Hacker-Mutant 4950 | -5/Factory | Fabricated Adv. Reaction Control System (x1) 4979 | -5/Factory | Identified exit to Extension 5054 | -5/Factory | Local fabrication network quarantined 5129 | -5/Factory | Entered Extension 5237 | -5/Extension | Rescued a captive Derelict 5270 | -5/Extension | Rescued a captive Derelict 5271 | -5/Extension | Rescued a captive Derelict 5311 | -5/Extension | Rescued A7 5529 | -5/Extension | Disrupted transfer network 5959 | -5/Extension | Spotted B-75 Beast 5964 | -5/Extension | Spotted B-75 Beast 5973 | -5/Extension | Destroyed B-75 Beast 5980 | -5/Extension | Self-destructed Last Messages --------------- 05972_ R-10 Processor suffers critical hit. 05972_ Destroyed Hpw. Tractor Beam. 05973_ Slug penetrates B-75 Beast. 05973_ Ripper follow-up attack on B-75 Beast. 05973_ Med. Reflective Plating melted. 05973_ Imp. Cooling System melted. 05973_ B-75 Beast destroyed. 05974_ Slug penetrates Wall. 05975_ HV Slug penetrates B-75 Beast. 05975_ Penetrated by Slug. 05976_ R-10 Processor collects Lgt. Ion Engine. 05976_ Phase Shifter destroyed. 05978_ HV Slug penetrates Y-64 Sentinel. 05978_ Y-64 Sentinel suffers critical hit. 05978_ Destroyed Imp. Treads. 05979_ Penetrated by Slug. 05979_ Deep Network Scanner destroyed. 05979_ Door Terminal disabled. 05979_ Power Sword destroyed. 05979_ Knocked back. Map ----- +----------------------------------------------------+ | ???????????????# ???????????????????????????????? | | ???????????????#+#???????????????????????????????? | | ?????????????????????????????????????????????????? | | ?????????????????????????????????????????????????? | | ?????????????????????????????????????????????????? | | ?????????????????????????????????????????????????? | | ?????????????????????? ??????????????????????????? | | ?????????????????????? #?????????????????????????? | | ?????????????????????? #?????????????????????????? | | ?????????????????????? #??##?##??????????????????? | | ???????????????????### ### ## ##?????????????????? | | ???????????????????#"" "" " ????????????????? | | ???????????????????# " " Y " " ?????????????? | | ???????????????????# #????????????? | | ???????????????????# Y g #????????????? | | #################### ###??????????? | | ??????????? | | ?????????? | | k l ?????????? | | u gp !%R ?????????? | | u**= R R ??????????? | | ###################; %= BB #????????????? | | ??????????????????## BB #????????????? | | ??????????????????## #????????????? | | ??????????????????#; #????????????? | | ??????????????????## @ #????????????? | | ???????????????????###### #"""#######????????????? | | ????????????????????????###??????????????????????? | | ?????????????????????????????????????????????????? | | | | | | | | | | | | | | | | | | | | | | | | | | | | | | | | | | | | | | | | | | | +----------------------------------------------------+ Best States ------------- Heat Dissipation 45 Energy Generation 37 Energy Capacity 370 Matter Stores 300 Matter Capacity 300 Sight Range 16 Robot Scan Range 16 Terrain Scan Density 10 Additional Mass Support 9 Armor Coverage 300 Resistance: TH 10 Phase Shifting 5 Evasion (%) 71 Melee Accuracy 10 Recoil Reduction 3 Offensive Hacking 49 Defensive Hacking 14 Item Schematics ----------------- Hcp. Storage Unit | -10/Materials | Hacked Hacking Suite | -8/Materials | Hacked Scythe | -7/Factory | Scanalyzed Imp. Hacking Suite | -7/Factory | Hacked Combat Drone Bay | -7/Data Miner | Free Lgt. Regenerative Plating | -7/Data Miner | Free Exp. Terrain Scanner | -7/Data Miner | Free Tactical Coordination Suite | -7/Data Miner | Free Cloaking Device | -7/Data Miner | Free Plasma Sword | -7/Data Miner | Free Adv. System Shield | -6/Factory | Hacked Cld. VTOL Module | -6/Factory | Hacked Adv. Hacking Suite | -5/Factory | Hacked Exp. Sensor Array | -5/Factory | Hacked Exp. Signal Interpreter | -5/Factory | Hacked Lgt. Antimatter Reactor | -5/Factory | Hacked Nanoactuators | -5/Factory | Hacked Mni. Smartbomb Launcher | -5/Factory | Hacked Imp. Phase Shifter | -5/Factory | Hacked Imp. Linear Gravjet | -5/Factory | Hacked Exp. Utility Shielding | -5/Factory | Hacked Exp. Propulsion Shielding | -5/Factory | Hacked Robot Schematics ------------------ S-27 Virus | -7/Data Miner | Free G-50 Soldier | -7/Data Miner | Free G-67 Veteran | -7/Data Miner | Free P-70 Sage | -7/Data Miner | Free I-36 Angel | -7/Data Miner | Free I-47 Archangel | -7/Data Miner | Free Fabricated ------------ Hacking Suite | x1 | -7/Factory Imp. Hacking Suite | x1 | -7/Factory Imp. Hacking Suite | x1 | -7/Factory Imp. Hacking Suite | x1 | -7/Factory Adv. System Shield | x1 | -6/Factory Cld. VTOL Module | x1 | -6/Factory Cld. VTOL Module | x1 | -6/Factory Lgt. Antimatter Reactor | x2 | -5/Factory Exp. Signal Interpreter | x1 | -5/Factory Adv. Reaction Control System | x1 | -5/Factory | Preloaded Alien Tech Used ----------------- Core Expander Achievements -------------- None Challenges ------------ None Game ------ Seed FortressStormUnit Manual? 0 Play Time 00:55:20 Cumulative 665.5 hours Start 2020.12.07 @ 14:00:13 End 2020.12.07 @ 14:54:42 Sessions 1 Manual Loads 0 Difficulty Rogue Special Mode None Game No. 1009 Rogue 1009 Adventurer 0 Explorer 0 Win Type - Total 64 Types 39/1/9/11/4/0/0/0/0 Lore% 94 Gallery% 94 Achievement% 83 Wizard Run 0 Options --------- ASCII 1 Keyboard 0 Movement Numpad Keybinds 0 Fullscreen 0 Font 14/SmallcapsGlow Map View 76x50 Tactical HUD 1 Map Filters NONE Filters NONE Steam 1 RUN: e366b75b-994b-42b3-9623-d0c8ee133839